bitfinex-derivatives/quotes_SOLF0:USTF0_20241009
["timestamp","ask_amount","ask_price","bid_price","bid_amount"]
[1728473891121,3.62482,142.97,142.94,14.2604]
[1728473891415,3.62482,142.97,142.96,5.31292433]
[1728473894619,3.62482,142.97,142.94,14.2604]
[1728473895024,0.12502,142.97,142.95,5.30792424]
[1728473895224,3.5001,142.96,142.94,14.2604]
[1728473895416,3.5001,142.96,142.95,5.30688222]
[1728473898231,3.5001,142.96,142.94,14.2604]
[1728473898424,3.5001,142.96,142.95,5.3041382]
[1728473899523,3.5001,142.96,142.94,14.2604]
[1728473899730,3.5001,142.96,142.95,5.30334028]
[1728473901827,3.5001,142.96,142.94,14.2604]
[1728473902232,3.5001,142.96,142.95,5.30183354]
[1728473904237,3.5001,142.96,142.94,14.2604]
[1728473906436,0.12502,142.97,142.93,3.4132593]
[1728473906636,3.5003,142.95,142.94,16.05804386]
[1728473907436,3.5006,142.94,142.92,12.1888]
[1728473907739,3.5006,142.94,142.93,5.29841157]
[1728473908738,3.5006,142.94,142.92,12.1888]
[1728473908934,3.5006,142.94,142.93,5.29801666]
[1728473909539,3.5006,142.94,142.93,16.05801666]
[1728473910045,0.12502,142.97,142.93,16.05801666]
[1728473910243,0.12502,142.97,142.93,14.2607]
[1728473911042,3.5004,142.95,142.93,10.76]
[1728473911541,0.12502,142.97,142.93,10.76]
[1728473912544,3.5005,142.94,142.93,10.76]
[1728473912753,3.5005,142.94,142.93,16.05673526]
[1728473913745,3.5005,142.95,142.93,16.05673526]
[1728473914041,3.5005,142.95,142.93,10.76]
[1728473914645,0.12502,142.97,142.93,10.76]
[1728473914948,10.88502,142.97,142.92,12.1888]
[1728473915138,4.86,142.96,142.92,12.1888]
[1728473915541,3.5003,142.95,142.92,12.1888]
[1728473915847,4.86,142.96,142.92,12.1888]
[1728473917040,15.62,142.96,142.91,10.76]
[1728473918140,3.501,142.92,142.91,10.76]
[1728473918341,3.501,142.92,142.91,16.06119205]
[1728473918742,15.62,142.96,142.91,16.06119205]
[1728473918947,3.5007,142.94,142.92,10.76]
[1728473919448,4.86,142.96,142.92,16.06119205]
[1728473919641,4.86,142.96,142.92,10.76]
[1728473920043,3.5007,142.94,142.92,10.76]
[1728473920848,3.5007,142.94,142.92,14.261]
[1728473922245,3.5007,142.94,142.92,10.76]
[1728473923349,3.5008,142.93,142.92,10.76]
[1728473923548,3.5008,142.93,142.91,10.76]
[1728473923952,3.501,142.92,142.91,10.76]
[1728473924146,15.62,142.96,142.91,16.06191051]
[1728473924347,15.62,142.96,142.91,10.76]
[1728473924546,3.501,142.93,142.91,10.76]
[1728473925251,3.501,142.93,142.92,5.30247943]
[1728473925952,4.98502,142.97,142.93,3.5008]
[1728473926148,4.98502,142.97,142.94,10.76]
[1728473926651,4.98502,142.97,142.92,1.422]
[1728473926652,8.48482,142.97,142.95,10.76]
[1728473931364,3.62482,142.97,142.95,10.76]
[1728473931562,3.5001,142.96,142.95,10.76]
[1728473931766,3.5001,142.96,142.95,16.06191177]
[1728473932252,3.5001,142.96,142.95,10.76]
[1728473932453,3.5001,142.96,142.94,10.76]
[1728473932966,3.5001,142.96,142.95,5.30248929]
[1728473934266,3.5001,142.96,142.95,5.30393442]
[1728473938466,3.5001,142.96,142.94,10.76]
[1728473938665,3.5001,142.96,142.95,5.30626915]
[1728473939168,3.5001,142.96,142.95,5.30610591]
[1728473940765,3.62492,142.97,142.95,19.56630591]
[1728473940969,0.12502,142.97,142.96,16.06628678]
[1728473941775,0.12502,142.97,142.96,19.53786739]
[1728473942069,0.12502,142.97,142.96,23.03796739]
[1728473944668,0.12502,142.97,142.96,17.73168061]
[1728473945071,0.12502,142.97,142.96,23.03522001]
[1728473948074,0.12502,142.97,142.96,17.73168061]
[1728473948477,0.12502,142.97,142.96,23.03857674]
[1728473949070,10.76,143.02,142.96,10.18467674]
[1728473949273,10.76,143.02,142.97,16.06689613]
[1728473949478,10.76,143.02,142.98,5.30689613]
[1728473949677,10.76,143.02,142.99,5.30689613]
[1728473949877,10.76,143.02,142.97,10.76]
[1728473950185,10.76,143.02,142.98,5.30924461]
[1728473950381,10.76,143.02,142.99,5.30924461]
[1728473950676,3.4996,142.98,142.97,10.76]
[1728473950881,3.4996,142.98,142.97,16.07097138]
[1728473952982,3.4996,142.98,142.97,5.31097138]
[1728473954776,3.5001,142.96,142.95,10.76]
[1728473955284,3.5001,142.96,142.95,16.07763596]
[1728473956780,4.86,143.0,142.95,16.07763596]
[1728473956976,4.86,143.0,142.97,10.76]
[1728473956977,3.4995,142.99,142.97,10.76]
[1728473957285,4.86,143.0,142.98,5.31763596]
[1728473957486,4.86,143.0,142.99,5.31763596]
[1728473957679,8.3591,143.0,142.99,5.31763596]
[1728473958781,19.1191,143.0,142.99,5.31763596]
[1728473962790,8.3591,143.0,142.99,5.31763596]
[1728473964791,3.4999,142.97,142.95,14.2602]
[1728473965695,3.4999,142.97,142.96,5.31650307]
[1728473966087,7.12202,143.03,142.96,16.07650307]
[1728473966088,0.12502,143.03,142.96,16.07650307]
[1728473966293,0.12502,143.03,143.02,10.76]
[1728473966491,0.12502,143.03,143.02,16.07650307]
[1728473966692,3.62332,143.03,143.02,5.31650307]
[1728473968088,3.62332,143.03,143.0,14.259]
[1728473968089,0.12502,143.03,142.99,10.76]
[1728473968284,3.4988,143.01,142.99,14.2592]
[1728473968794,3.4988,143.01,142.99,10.76]
[1728473969094,3.4988,143.01,143.0,5.31042294]
[1728473971700,3.4995,142.99,142.97,12.1093]
[1728473972297,3.4995,142.99,142.98,5.30984554]
[1728473972597,14.2595,142.99,142.98,5.30984554]
[1728473972808,14.2595,142.99,142.92,1.394]
[1728473973096,10.76,142.95,142.9,15.7059]
[1728473973597,3.5009,142.93,142.9,15.7059]
[1728473973792,10.76,142.95,142.9,12.2044]
[1728473973992,3.5006,142.94,142.9,12.2044]
[1728473974996,3.5006,142.94,142.9,15.7057]
[1728473977095,3.501,142.92,142.9,15.7057]
[1728473977401,3.501,142.92,142.9,12.2044]
[1728473984205,3.501,142.92,142.9,15.7059]
[1728473985007,3.5009,142.93,142.91,16.17942503]
[1728473985207,3.5009,142.93,142.92,5.29440503]
[1728473989299,3.5009,142.93,142.91,14.38632]
[1728473989498,3.5009,142.93,142.92,5.29432586]
[1728473989693,10.76,142.96,142.92,5.29432586]
[1728473989910,3.5007,142.94,142.93,5.29432586]
[1728473990495,3.5007,142.94,142.91,14.38622]
[1728473990705,3.5007,142.94,142.93,5.29375504]
[1728473995806,10.76,142.96,142.91,3.62622]
[1728473996010,3.5009,142.93,142.91,3.62622]
[1728473996622,3.5009,142.93,142.92,5.293041]
[1728474001921,3.5009,142.93,142.91,3.62622]
[1728474002115,3.5009,142.93,142.92,5.29198239]
[1728474005424,10.76,142.96,142.91,0.12502]
[1728474005425,3.501,142.92,142.91,0.12502]
[1728474006033,3.501,142.92,142.91,5.41768643]
[1728474008030,3.501,142.92,142.91,0.12502]
[1728474008835,3.502,142.88,142.87,71.90205633]
[1728474009029,10.76,142.88,142.85,0.12502]
[1728474009228,3.5025,142.86,142.85,0.12502]
[1728474014737,14.2625,142.86,142.85,0.12502]
[1728474015332,3.5039,142.81,142.79,0.12502]
[1728474015533,10.76,142.82,142.79,0.12502]
[1728474015732,70.0099554,142.88,142.79,0.12502]
[1728474015733,15.62,142.81,142.79,0.12502]
[1728474016230,3.504,142.8,142.79,0.12502]
[1728474024346,4.86,142.8,142.79,0.12502]
[1728474025041,8.364,142.8,142.79,0.12502]
[1728474032656,10.76,142.83,142.79,0.12502]
[1728474032953,4.86,142.83,142.8,3.504]
[1728474033147,8.3634,142.83,142.8,3.504]
[1728474033450,8.3634,142.83,142.8,3.5039]
[1728474034247,3.5035,142.82,142.8,3.5039]
[1728474034649,10.76,142.81,142.79,0.12502]
[1728474034847,3.504,142.8,142.79,0.12502]
[1728474035852,15.62,142.83,142.79,0.12502]
[1728474036051,3.5039,142.81,142.79,0.12502]
[1728474036848,15.62,142.83,142.79,0.12502]
[1728474037753,3.504,142.8,142.79,0.12502]
[1728474038559,3.5038,142.81,142.79,0.12502]
[1728474040455,15.62,142.83,142.79,0.12502]
[1728474041163,4.84,142.83,142.79,10.88502]
[1728474041658,15.6,142.83,142.79,0.12502]
[1728474042551,3.5037,142.81,142.79,0.12502]
[1728474046663,3.5036,142.82,142.79,14.38912]
[1728474047159,8.3433,142.83,142.8,3.5039]
[1728474049266,14.2628,142.85,142.82,3.5033]
[1728474049563,4.84,142.84,142.8,12.1231]
[1728474049957,4.84,142.84,142.81,3.5037]
[1728474051467,8.3431,142.84,142.81,3.5037]
[1728474055260,8.3431,142.84,142.8,12.1231]
[1728474055461,8.3431,142.84,142.82,3.5035]
[1728474055664,10.76,142.83,142.8,1.3631]
[1728474056266,3.5035,142.82,142.8,1.3631]
[1728474057874,3.5037,142.81,142.8,1.3631]
[1728474059979,3.504,142.8,142.79,0.12502]
[1728474061174,14.264,142.8,142.79,0.12502]
[1728474062579,4.84,142.81,142.79,14.38912]
[1728474062981,4.84,142.81,142.79,10.88502]
[1728474063380,8.3439,142.81,142.79,10.88502]
[1728474063576,10.76,142.84,142.79,10.88502]
[1728474063770,4.84,142.83,142.79,10.88502]
[1728474064179,3.5036,142.82,142.79,14.38912]
[1728474064384,3.5036,142.82,142.8,10.76]
[1728474065486,3.5037,142.81,142.8,10.76]
[1728474065886,4.84,142.83,142.8,10.76]
[1728474066084,3.5036,142.82,142.8,10.76]
[1728474069397,3.5036,142.82,142.8,14.264]
[1728474071385,4.92,142.84,142.81,3.5035]
[1728474071386,3.5033,142.83,142.81,3.5035]
[1728474073297,3.5033,142.83,142.82,5.29866712]
[1728474074904,3.5033,142.83,142.81,3.5035]
[1728474075399,3.5033,142.83,142.81,14.2635]
[1728474075594,3.5033,142.83,142.82,5.3008307]
[1728474076195,3.5031,142.84,142.82,8.8043307]
[1728474076501,3.5031,142.84,142.83,5.3008307]
[1728474078497,3.5031,142.84,142.82,3.5035]
[1728474078798,3.5031,142.84,142.83,5.31385111]
[1728474080290,3.5029,142.85,142.83,8.81705111]
[1728474080495,3.5029,142.85,142.84,5.31385111]
[1728474082204,3.5029,142.85,142.84,5.31509524]
[1728474082997,4.92,142.86,142.84,19.57809524]
[1728474082998,3.5027,142.86,142.84,19.57809524]
[1728474083198,3.5027,142.86,142.85,5.31509524]
[1728474085397,15.68,142.88,142.84,10.76]
[1728474085597,3.5028,142.85,142.84,10.76]
[1728474085908,70.00002316,142.9,142.84,16.07368467]
[1728474086202,3.5021,142.88,142.85,10.76]
[1728474086406,4.92,142.89,142.86,5.31368467]
[1728474086707,3.502,142.88,142.87,5.31368467]
[1728474088913,4.92,142.89,142.85,10.76]
[1728474088914,3.5025,142.87,142.85,10.76]
[1728474089204,3.5025,142.87,142.86,5.30930559]
[1728474095912,3.5026,142.86,142.84,14.2629]
[1728474096608,3.5026,142.86,142.85,5.30548734]
[1728474099307,3.5026,142.86,142.84,14.2629]
[1728474099703,3.5023,142.87,142.85,3.5026]
[1728474100011,3.5023,142.87,142.84,10.76]
[1728474100210,3.5023,142.87,142.85,5.30440727]
[1728474100407,4.92,142.89,142.86,5.30440727]
[1728474100714,4.92,142.89,142.87,5.30421358]
[1728474100904,4.92,142.89,142.84,14.2629]
[1728474101105,4.92,142.89,142.85,5.30421845]
[1728474101410,4.92,142.89,142.86,5.30421845]
[1728474101611,4.92,142.89,142.87,5.30421845]
[1728474101799,4.92,142.89,142.84,14.2629]
[1728474102004,4.92,142.89,142.85,5.30403875]
[1728474102207,4.92,142.89,142.86,5.30403875]
[1728474102511,4.92,142.89,142.87,5.30403875]
[1728474102815,3.5026,142.86,142.84,14.2629]
[1728474103300,3.5026,142.86,142.85,5.30351922]
[1728474106506,3.5026,142.86,142.84,14.2629]
[1728474106914,3.5026,142.86,142.85,5.303731]
[1728474110510,3.5026,142.86,142.85,16.063731]
[1728474112611,3.5026,142.86,142.85,5.303731]
[1728474113512,4.88,142.88,142.84,10.76]
[1728474113916,4.88,142.88,142.85,5.30564068]
[1728474114117,4.88,142.88,142.86,5.30564068]
[1728474114323,4.88,142.88,142.84,10.76]
[1728474114511,4.88,142.88,142.85,5.30582075]
[1728474114714,3.5023,142.87,142.86,5.30582075]
[1728474117916,8.3822,142.88,142.86,5.30582075]
[1728474118219,8.3822,142.88,142.87,5.30582075]
[1728474119013,3.5022,142.88,142.87,5.30582075]
[1728474120616,3.5024,142.87,142.85,14.2626]
[1728474121225,3.5024,142.87,142.86,5.30421702]
[1728474121723,3.5024,142.87,142.86,5.30304428]
[1728474123326,3.5024,142.87,142.85,14.2626]
[1728474123717,3.5024,142.87,142.86,5.30261659]
[1728474128515,3.5019,142.89,142.86,16.06261659]
[1728474128718,3.5019,142.89,142.88,10.76]
[1728474129021,3.5019,142.89,142.88,16.06261659]
[1728474129322,3.5016,142.9,142.88,16.06261659]
[1728474129526,3.5016,142.9,142.89,5.30261659]
[1728474130532,10.88502,142.91,142.87,10.76]
[1728474130728,3.502,142.88,142.87,10.76]
[1728474131322,3.502,142.88,142.87,16.06452501]
[1728474132023,3.5019,142.89,142.87,19.56672501]
[1728474132224,3.5019,142.89,142.88,5.30452501]
[1728474132734,3.5016,142.9,142.88,16.06452501]
[1728474133032,4.96502,142.91,142.89,5.30452501]
[1728474133230,4.96502,142.91,142.88,10.76]
[1728474133532,4.96502,142.91,142.89,5.30534985]
[1728474133721,4.96502,142.91,142.88,10.76]
[1728474133722,8.46632,142.91,142.9,5.30534985]
[1728474137327,3.5018,142.89,142.88,10.76]
[1728474138236,3.5018,142.89,142.88,16.0653459]
[1728474140834,3.5018,142.89,142.88,10.76]
[1728474141629,3.5018,142.89,142.88,16.06602536]
[1728474144441,3.5018,142.89,142.88,10.76]
[1728474144941,3.5018,142.89,142.88,16.06651039]
[1728474145647,3.5018,142.89,142.88,5.30651039]
[1728474151547,3.5023,142.87,142.85,6.3645]
[1728474152142,3.5023,142.87,142.86,16.07143103]
[1728474152346,3.5023,142.87,142.86,5.31143103]
[1728474152547,3.5023,142.87,142.86,16.07143103]
[1728474155349,3.5023,142.87,142.86,5.31143103]
[1728474156856,8.3423,142.87,142.86,5.31143103]
[1728474158455,4.84,142.87,142.84,10.76]
[1728474158650,3.5027,142.86,142.84,10.76]
[1728474159153,3.5027,142.86,142.85,5.31610982]
[1728474162256,101.44237004,142.9,142.85,5.31610982]
[1728474162459,4.84,142.89,142.85,10.76]
[1728474162856,3.5022,142.88,142.86,8.81696234]
[1728474163062,4.84,142.89,142.86,5.31456234]
[1728474163363,3.5022,142.88,142.87,5.31456234]
[1728474165762,3.5024,142.87,142.85,14.2626]
[1728474165962,4.84,142.89,142.85,10.76]
[1728474166157,4.84,142.89,142.87,5.31384853]
[1728474166459,3.502,142.88,142.87,5.31384853]
[1728474166662,4.84,142.89,142.87,5.31269838]
[1728474166860,4.84,142.89,142.88,5.31269838]
[1728474168076,97.96254225,142.9,142.88,5.31269838]
[1728474168274,4.36730162,142.89,142.85,10.76]
[1728474168475,4.36730162,142.89,142.86,3.5025]
[1728474169072,3.5022,142.88,142.86,3.5025]
[1728474169378,4.36730162,142.89,142.86,3.5025]
[1728474169569,4.36730162,142.89,142.85,10.76]
[1728474169570,4.36730162,142.89,142.85,14.2627]
[1728474169883,3.5023,142.87,142.85,14.2627]
[1728474170872,4.36730162,142.89,142.85,10.76]
[1728474171072,3.5021,142.88,142.87,10.76]
[1728474171275,102.80254225,142.9,142.87,10.76]
[1728474171470,102.80254225,142.9,142.88,10.76]
[1728474172270,3.5018,142.89,142.88,10.76]
[1728474174076,97.96254225,142.9,142.88,10.76]
[1728474174380,97.96254225,142.9,142.88,14.2619]
[1728474174381,101.46414225,142.9,142.88,14.2619]
[1728474179183,101.46414225,142.9,142.88,10.76]
[1728474180289,3.5018,142.89,142.88,10.76]
[1728474180489,3.5018,142.89,142.88,16.00057049]
[1728474182087,3.5018,142.89,142.88,10.76]
[1728474182685,3.5018,142.89,142.88,15.99910605]
[1728474185593,3.5018,142.89,142.88,5.23910605]
[1728474191993,3.5018,142.89,142.87,14.2623]
[1728474192294,3.5018,142.89,142.88,5.2394651]
[1728474192899,4.96502,142.91,142.88,15.9994651]
[1728474193197,3.5016,142.9,142.89,5.2394651]
[1728474198913,3.5018,142.89,142.88,10.76]
[1728474199593,3.5018,142.89,142.88,15.999202]
[1728474200891,0.12502,142.91,142.88,15.999202]
[1728474201100,0.12502,142.91,142.9,14.2615]
[1728474201298,0.12502,142.91,142.9,19.500702]
[1728474202704,0.12502,142.91,142.9,19.50263592]
[1728474206008,0.12502,142.91,142.9,14.2615]
[1728474206199,0.12502,142.91,142.9,19.49877634]
[1728474206712,3.5009,142.93,142.91,3.5011]
[1728474207009,3.5009,142.93,142.92,5.23727634]
[1728474209301,3.5009,142.93,142.91,10.76]
[1728474209503,3.5009,142.93,142.92,5.23460382]
[1728474210609,3.5009,142.93,142.92,15.99460382]
[1728474216215,3.5009,142.93,142.92,10.76]
[1728474216419,3.5009,142.93,142.92,15.9911792]
[1728474217816,4.84,142.95,142.92,19.4920792]
[1728474217817,3.5007,142.94,142.92,19.4920792]
[1728474218010,3.5007,142.94,142.93,10.76]
[1728474220014,3.5007,142.94,142.93,15.98894344]
[1728474220717,3.5007,142.94,142.93,15.98819121]
[1728474222020,3.5007,142.94,142.93,5.22819121]
[1728474223119,3.5007,142.94,142.92,14.2609]
[1728474223623,3.5007,142.94,142.93,5.31494172]
[1728474226230,4.82,142.96,142.93,5.31494172]
[1728474226422,4.82,142.96,142.94,5.31494172]
[1728474226729,4.82,142.96,142.92,10.76]
[1728474226925,0.12502,142.97,142.94,10.76]
[1728474227128,0.12502,142.97,142.95,10.76]
[1728474227538,3.62482,142.97,142.95,19.57428488]
[1728474227832,3.62482,142.97,142.95,14.2602]
[1728474228332,3.62482,142.97,142.95,10.76]
[1728474228729,3.62482,142.97,142.96,5.31022296]
[1728474229536,3.62482,142.97,142.95,10.76]
[1728474230038,0.12502,142.97,142.95,10.76]
[1728474230237,3.5001,142.96,142.95,10.76]
[1728474230437,3.5001,142.96,142.95,16.07080186]
[1728474231344,3.5001,142.96,142.95,5.31080186]
[1728474233140,3.5001,142.96,142.95,16.07080186]
[1728474238652,3.5001,142.96,142.95,10.76]
[1728474239745,3.5001,142.96,142.95,16.07028156]
[1728474240743,3.62502,142.97,142.95,19.57058156]
[1728474240940,3.62502,142.97,142.95,14.2603]
[1728474244348,0.12502,142.97,142.96,14.2601]
[1728474244548,0.12502,142.97,142.96,19.5692758]
[1728474249453,0.12502,142.97,142.96,14.2601]
[1728474249951,0.12502,142.97,142.96,19.55760219]
[1728474250151,0.12502,142.97,142.96,5.29750219]
[1728474250457,3.62482,142.97,142.96,5.29750219]
[1728474251458,0.12502,142.97,142.96,5.29750219]
[1728474255263,3.62482,142.97,142.95,10.76]
[1728474257163,3.62482,142.97,142.95,14.2603]
[1728474266372,3.62482,142.97,142.96,5.30434965]
[1728474269673,3.62482,142.97,142.95,14.2603]
[1728474269877,3.62482,142.97,142.96,5.30781963]
[1728474273275,3.62482,142.97,142.95,14.2603]
[1728474273467,3.62482,142.97,142.96,5.30939298]
[1728474275272,0.12502,142.97,142.96,8.80949298]
[1728474276576,0.12502,142.97,142.96,5.30939298]
[1728474276774,3.62482,142.97,142.96,5.30939298]
[1728474279986,3.62482,142.97,142.95,14.2602]
[1728474280181,3.62482,142.97,142.96,5.31087508]
[1728474283490,3.62482,142.97,142.95,14.2603]
[1728474283790,0.12502,142.97,142.96,5.313831]
[1728474286587,0.12502,142.97,142.96,8.813931]
[1728474287387,0.12502,142.97,142.96,5.313831]
[1728474287686,3.62482,142.97,142.96,5.313831]
[1728474290392,3.62482,142.97,142.95,14.2602]
[1728474290596,3.62482,142.97,142.96,5.31592734]
[1728474291388,3.62482,142.97,142.96,10.63177746]
[1728474293699,3.62482,142.97,142.96,5.31592734]
[1728474293993,3.62482,142.97,142.96,10.63437353]
[1728474297201,3.62482,142.97,142.96,5.31592734]
[1728474297598,3.62482,142.97,142.96,10.63675001]
[1728474299504,3.62482,142.97,142.96,5.32082267]
[1728474301105,0.12502,142.97,142.96,5.32082267]
[1728474303105,0.12502,142.97,142.95,14.2602]
[1728474303508,0.12502,142.97,142.96,5.32119176]
[1728474306403,0.12502,142.97,142.96,8.82129176]
[1728474306595,0.12502,142.97,142.96,3.5001]
[1728474306800,0.12502,142.97,142.96,8.82183037]
[1728474307907,3.62482,142.97,142.96,5.32173037]
[1728474310009,3.62482,142.97,142.95,3.5002]
[1728474310308,3.62482,142.97,142.96,5.32108196]
[1728474320314,3.62482,142.97,142.95,3.5002]
[1728474320918,3.62482,142.97,142.96,5.32167025]
[1728474321711,3.62482,142.97,142.96,16.08167025]
[1728474323715,3.62482,142.97,142.96,10.76]
[1728474324119,3.62482,142.97,142.93,8.9789]
[1728474324120,0.12502,142.97,142.93,8.9789]
[1728474324320,0.12502,142.97,142.95,10.76]
[1728474324819,3.62482,142.97,142.96,5.32199845]
[1728474327233,3.62482,142.97,142.95,10.76]
[1728474327623,3.62482,142.97,142.96,5.32129964]
[1728474329430,0.12502,142.97,142.96,19.58139964]
[1728474329629,4.76,143.01,142.96,16.08129964]
[1728474329937,97.91395298,143.02,142.93,8.9789]
[1728474329938,97.91395298,143.02,143.0,10.76]
[1728474330234,101.41255298,143.02,143.01,5.32129964]
[1728474330833,3.4988,143.01,143.0,10.76]
[1728474331435,3.4988,143.01,143.0,16.12773362]
[1728474332026,3.4988,143.01,143.0,5.36773362]
[1728474338139,97.91395298,143.02,142.98,6.98575328]
[1728474338140,3.4993,143.0,142.98,6.98575328]
[1728474338340,3.4993,143.0,142.99,10.76]
[1728474338731,3.4993,143.0,142.99,16.1259636]
[1728474344040,3.4993,143.0,142.99,5.3659636]
[1728474344247,8.2793,143.0,142.99,5.3659636]
[1728474348933,3.5001,142.96,142.95,10.76]
[1728474349547,3.5005,142.94,142.93,1.4283]
[1728474349745,3.5005,142.94,142.93,17.55936815]
[1728474353037,3.5005,142.94,142.93,6.79936815]
[1728474353246,3.5005,142.94,142.93,5.37106815]
[1728474353647,8.2805,142.94,142.93,5.37106815]
[1728474355245,19.0405,142.94,142.93,5.37106815]
[1728474355751,3.501,142.92,142.91,0.12502]
[1728474356638,3.501,142.92,142.91,5.49345814]
[1728474358943,3.501,142.92,142.91,16.25345814]
[1728474359242,3.501,142.92,142.91,10.88502]
[1728474359452,3.5009,142.93,142.91,16.24782277]
[1728474359651,3.5009,142.93,142.91,19.74912277]
[1728474360042,3.5009,142.93,142.92,5.36280277]
[1728474361443,6.9995,142.98,142.92,5.36280277]
[1728474361649,3.5007,142.94,142.93,5.35955431]
[1728474361944,3.5007,142.94,142.93,10.76]
[1728474362344,3.5007,142.94,142.92,10.76]
[1728474362545,3.5007,142.94,142.93,5.358492]
[1728474365145,3.5007,142.94,142.92,10.76]
[1728474365346,3.5007,142.94,142.93,5.35628346]
[1728474368454,3.5007,142.94,142.92,10.76]
[1728474368857,3.5007,142.94,142.93,5.3550496]
[1728474372057,3.5007,142.94,142.92,10.76]
[1728474372448,3.5007,142.94,142.93,5.35428744]
[1728474375861,3.5002,142.96,142.93,19.61488744]
[1728474376158,4.78,142.97,142.94,5.35428744]
[1728474376353,4.78,142.97,142.93,14.2606]
[1728474376554,3.5003,142.95,142.94,5.35181186]
[1728474378366,69.94977956,142.99,142.94,5.35181186]
[1728474378568,4.78,143.0,142.96,10.76]
[1728474378862,4.78,143.0,142.97,5.35181186]
[1728474379068,3.4995,142.99,142.96,14.2599]
[1728474379253,4.78,143.0,142.96,14.2599]
[1728474379563,3.4996,142.98,142.97,5.34780727]
[1728474380065,3.4996,142.98,142.97,16.10780727]
[1728474380256,3.4994,142.99,142.97,19.60750727]
[1728474380457,3.4994,142.99,142.98,5.34780727]
[1728474389161,3.4996,142.98,142.97,10.76]
[1728474390062,3.4996,142.98,142.97,16.10868647]
[1728474392762,3.4996,142.98,142.97,10.76]
[1728474392971,3.4996,142.98,142.97,16.10597063]
[1728474394168,0.12502,143.03,142.98,3.4994]
[1728474394371,4.78,143.02,143.0,10.76]
[1728474394666,4.90502,143.03,143.0,10.76]
[1728474394973,3.4988,143.01,143.0,10.76]
[1728474399576,3.4988,143.01,143.0,16.10283289]
[1728474399879,0.12502,143.03,143.0,16.10283289]
[1728474400081,3.62332,143.03,143.02,10.76]
[1728474401693,0.12502,143.03,143.02,10.76]
[1728474402377,3.62332,143.03,143.02,10.76]
[1728474402575,0.12502,143.03,143.02,14.2586]
[1728474403674,0.12502,143.03,143.02,19.59476256]
[1728474404180,0.12502,143.03,143.02,8.83476256]
[1728474404381,0.12502,143.03,143.02,19.59476256]
[1728474405379,0.12502,143.03,143.02,14.2586]
[1728474406887,0.12502,143.03,143.02,3.4986]
[1728474407490,0.12502,143.03,143.02,14.2586]
[1728474407984,3.4978,143.06,143.03,3.4982]
[1728474408180,3.4978,143.06,143.04,10.76]
[1728474409085,3.4978,143.06,143.05,10.76]
[1728474410588,3.4983,143.03,143.02,2.7443]
[1728474410789,3.4983,143.03,143.02,12.0767]
[1728474411290,4.92502,143.09,143.02,12.0767]
[1728474411488,3.4982,143.04,143.03,10.76]
[1728474412685,3.4978,143.06,143.03,14.2583]
[1728474412990,0.12502,143.09,143.05,10.76]
[1728474413181,4.78,143.08,143.05,10.76]
[1728474413693,3.498,143.05,143.04,10.76]
[1728474416886,3.4983,143.04,143.02,1.3167]
[1728474417185,3.4983,143.04,143.03,10.76]
[1728474418898,3.4981,143.05,143.03,10.76]
[1728474419088,4.78,143.08,143.03,10.76]
[1728474419392,3.4981,143.04,143.03,10.76]
[1728474419592,4.78,143.08,143.03,10.76]
[1728474420396,3.498,143.05,143.04,10.76]
[1728474421997,3.4977,143.06,143.04,10.76]
[1728474423401,0.12502,143.09,143.05,10.76]
[1728474423703,0.12502,143.09,143.02,6.0967]